bitfinex-derivatives/quotes_BTCF0:USTF0_20250911
["timestamp","ask_amount","ask_price","bid_price","bid_amount"]
[1757610456599,1.58749667,114470.0,114460.0,0.001]
[1757610456799,1.42623,114470.0,114460.0,0.001]
[1757610457109,1.58749667,114470.0,114460.0,0.001]
[1757610457614,1.42999,114470.0,114460.0,0.03638]
[1757610457800,1.42983,114470.0,114460.0,0.03638]
[1757610458001,1.42983,114470.0,114460.0,0.001]
[1757610458398,1.42979,114470.0,114460.0,0.001]
[1757610459305,1.17979,114470.0,114460.0,0.001]
[1757610460406,1.17979,114470.0,114460.0,0.01449]
[1757610461004,1.17979,114470.0,114460.0,0.001]
[1757610461507,1.34105667,114470.0,114460.0,0.001]
[1757610462412,1.34997119,114470.0,114460.0,0.001]
[1757610468115,1.34849119,114470.0,114460.0,0.001]
[1757610468514,1.59849119,114470.0,114460.0,0.001]
[1757610469912,1.59949119,114470.0,114460.0,0.001]
[1757610470723,0.00562,114460.0,114440.0,0.27769]
[1757610470914,1.53995,114450.0,114440.0,0.27769]
[1757610472215,1.70121667,114450.0,114440.0,0.2642]
[1757610472817,1.70097667,114450.0,114440.0,0.2642]
[1757610473015,1.76998871,114450.0,114440.0,0.2652]
[1757610473420,0.96086871,114450.0,114440.0,0.2652]
[1757610473621,1.76994871,114450.0,114440.0,0.2652]
[1757610473821,1.76994871,114450.0,114440.0,0.001]
[1757610474222,1.76994871,114450.0,114440.0,0.01445]
[1757610474223,1.60848204,114450.0,114440.0,0.01445]
[1757610474423,1.72396057,114450.0,114440.0,0.03645]
[1757610474624,0.91508057,114450.0,114440.0,0.03645]
[1757610474927,1.60848204,114450.0,114440.0,0.03645]
[1757610475226,1.72396057,114450.0,114440.0,0.03645]
[1757610475726,1.60848204,114450.0,114440.0,0.03645]
[1757610475924,1.72396057,114450.0,114440.0,0.03645]
[1757610476223,1.72420057,114450.0,114440.0,0.03645]
[1757610476524,0.91508057,114450.0,114440.0,0.03645]
[1757610476726,1.72412057,114450.0,114440.0,0.03645]
[1757610477421,1.72400057,114450.0,114440.0,0.03645]
[1757610477627,1.72400057,114450.0,114440.0,0.15192853]
[1757610479117,1.60852204,114450.0,114440.0,0.15192853]
[1757610479325,1.72400057,114450.0,114440.0,0.15192853]
[1757610479524,1.72400057,114450.0,114440.0,0.001]
[1757610479722,1.72400057,114450.0,114440.0,0.2652]
[1757610480331,1.24744204,114450.0,114440.0,0.53769345]
[1757610480624,1.24744204,114450.0,114440.0,0.42221492]
[1757610480833,1.36292057,114450.0,114440.0,0.30673639]
[1757610481134,1.36292057,114450.0,114440.0,0.02128639]
[1757610481135,1.72372057,114450.0,114440.0,0.02128639]
[1757610482332,1.60824204,114450.0,114440.0,0.02128639]
[1757610482533,1.72372057,114450.0,114440.0,0.02128639]
[1757610482934,1.60824204,114450.0,114440.0,0.02128639]
[1757610483128,1.72372057,114450.0,114440.0,0.02128639]
[1757610483626,1.72372057,114450.0,114440.0,0.001]
[1757610483627,1.8391991,114450.0,114440.0,0.001]
[1757610483835,1.97372057,114450.0,114440.0,0.001]
[1757610484131,3.73584057,114450.0,114440.0,0.001]
[1757610484331,3.73712057,114450.0,114440.0,0.001]
[1757610484729,2.92720057,114450.0,114440.0,0.001]
[1757610484939,3.73708057,114450.0,114440.0,0.001]
[1757610485139,3.73712057,114450.0,114440.0,0.001]
[1757610485833,2.56172204,114450.0,114440.0,0.022]
[1757610486124,3.48696057,114450.0,114440.0,0.03545]
[1757610486329,3.48696057,114450.0,114440.0,0.01345]
[1757610486529,2.67720057,114450.0,114440.0,0.01345]
[1757610486727,3.48708057,114450.0,114440.0,0.01345]
[1757610487131,3.37160204,114450.0,114440.0,0.03545]
[1757610487438,3.37156204,114450.0,114440.0,0.40092853]
[1757610488736,3.48704057,114450.0,114440.0,0.40092853]
[1757610489037,3.48704057,114450.0,114440.0,0.28545]
[1757610489438,3.37156204,114450.0,114440.0,0.40092853]
[1757610490041,3.37156204,114450.0,114440.0,0.28545]
[1757610490242,3.37156204,114450.0,114440.0,0.40092853]
[1757610490940,3.48704057,114450.0,114440.0,0.28545]
[1757610491744,3.48704057,114450.0,114430.0,0.27765]
[1757610491929,0.48526853,114440.0,114430.0,0.29965]
[1757610492442,0.48526853,114440.0,114430.0,0.27765]
[1757610493350,0.48526853,114440.0,114430.0,0.30065]
[1757610495742,0.36979,114440.0,114430.0,0.41612853]
[1757610496644,0.48526853,114440.0,114430.0,0.30065]
[1757610497448,0.48526853,114440.0,114430.0,0.41612853]
[1757610498249,0.48526853,114440.0,114430.0,0.49447823]
[1757610498448,1.17807,114440.0,114430.0,0.49447823]
[1757610499452,0.81711,114440.0,114430.0,0.49447823]
[1757610500051,1.17791,114440.0,114430.0,0.49447823]
[1757610500352,1.35114347,114440.0,114430.0,0.3789997]
[1757610500542,1.17791,114440.0,114430.0,0.3789997]
[1757610500848,1.35114347,114440.0,114430.0,0.55223317]
[1757610503253,1.35114347,114440.0,114430.0,0.47388347]
[1757610503958,1.35114347,114440.0,114430.0,0.30065]
[1757610504158,1.17791,114440.0,114430.0,0.47388347]
[1757610504455,1.17799,114440.0,114430.0,0.47388347]
[1757610504658,1.35122347,114440.0,114430.0,0.47388347]
[1757610504860,1.35122347,114440.0,114430.0,0.30065]
[1757610505047,1.35122347,114440.0,114430.0,0.47388347]
[1757610506458,1.35122347,114440.0,114430.0,0.58365221]
[1757610506864,0.36979,114440.0,114430.0,0.58365221]
[1757610507065,0.81727,114440.0,114430.0,0.58365221]
[1757610508157,0.00899,114440.0,114430.0,0.58365221]
[1757610508654,0.81695,114440.0,114430.0,0.58365221]
[1757610509663,1.35098347,114440.0,114430.0,0.47388347]
[1757610509960,1.35098347,114440.0,114430.0,0.30065]
[1757610510267,1.35098347,114440.0,114430.0,0.58365221]
[1757610510464,1.35098347,114440.0,114430.0,0.12421874]
[1757610510669,1.52421694,114440.0,114430.0,0.2028457]
[1757610511070,1.52421694,114440.0,114430.0,0.09564696]
[1757610511268,1.35098347,114440.0,114430.0,0.26888043]
[1757610511467,1.35094347,114440.0,114430.0,0.29129043]
[1757610512070,1.35094347,114440.0,114430.0,0.09564696]
[1757610512371,1.35094347,114440.0,114430.0,0.26888043]
[1757610512562,1.35094347,114440.0,114430.0,0.29129043]
[1757610513670,1.35094347,114440.0,114430.0,0.21266347]
[1757610514265,1.35094347,114440.0,114430.0,0.00357]
[1757610514266,1.35656347,114440.0,114430.0,0.00357]
[1757610514570,1.35656347,114440.0,114430.0,0.17680347]
[1757610514772,1.35656347,114440.0,114430.0,0.00357]
[1757610515374,1.35094347,114440.0,114430.0,0.28657221]
[1757610515668,0.36979,114440.0,114430.0,0.32212221]
[1757610515873,0.54302347,114440.0,114430.0,0.32212221]
[1757610516075,1.17747,114440.0,114430.0,0.32212221]
[1757610516274,0.36979,114440.0,114430.0,0.32212221]
[1757610516571,0.36979,114440.0,114430.0,0.57212221]
[1757610516875,1.17771,114440.0,114430.0,0.57212221]
[1757610518878,0.36979,114440.0,114430.0,0.57212221]
[1757610519079,1.1684,114440.0,114430.0,0.74535568]
[1757610519371,2.20958138,114450.0,114430.0,0.49535568]
[1757610519570,2.21857138,114450.0,114440.0,0.11418139]
[1757610519770,3.02609138,114450.0,114440.0,0.46064833]
[1757610520477,2.21857138,114450.0,114440.0,0.46064833]
[1757610520678,3.02597138,114450.0,114440.0,0.46064833]
[1757610520873,3.02597138,114450.0,114440.0,0.11418139]
[1757610521167,3.02597138,114450.0,114440.0,0.46064833]
[1757610521369,3.02597138,114450.0,114440.0,0.72484833]
[1757610522074,2.65618138,114450.0,114440.0,1.01621694]
[1757610522281,2.65618138,114450.0,114440.0,1.14598568]
[1757610522478,2.65618138,114450.0,114440.0,1.00598568]
[1757610522880,0.89406138,114450.0,114440.0,1.00598568]
[1757610523272,0.08666138,114450.0,114440.0,1.00598568]
[1757610523473,0.89426138,114450.0,114440.0,1.00598568]
[1757610523675,0.01764934,114450.0,114440.0,1.97318115]
[1757610523870,0.01774466,114470.0,114460.0,0.1228968]
[1757610524181,0.85104447,114480.0,114470.0,0.03555]
[1757610524371,0.85104447,114480.0,114470.0,0.49201234]
[1757610524869,0.8336,114480.0,114470.0,0.85201234]
[1757610525178,0.8336,114480.0,114470.0,0.63201694]
[1757610525383,0.84259,114480.0,114470.0,0.45878347]
[1757610526179,0.84259,114480.0,114470.0,0.53715482]
[1757610526376,0.84559,114480.0,114470.0,0.53715482]
[1757610526577,0.84659,114480.0,114470.0,0.53715482]
[1757610527185,1.01982347,114480.0,114470.0,0.28715482]
[1757610527478,1.44305694,114480.0,114470.0,0.07837135]
[1757610527684,1.44305694,114480.0,114460.0,0.18637347]
[1757610527885,0.54302347,114470.0,114460.0,0.28715482]
[1757610528079,0.54302347,114470.0,114460.0,0.11392135]
[1757610528273,0.36979,114470.0,114460.0,0.28715482]
[1757610528478,0.00899,114470.0,114460.0,0.46038829]
[1757610528676,0.00899,114470.0,114460.0,0.38201694]
[1757610529083,0.84659,114480.0,114470.0,0.01314]
[1757610529285,0.84559,114480.0,114470.0,0.20878347]
[1757610529884,1.01882347,114480.0,114470.0,0.20878347]
[1757610530389,1.01982347,114480.0,114470.0,0.47298347]
[1757610530588,0.84659,114480.0,114470.0,0.47298347]
[1757610530789,1.01982347,114480.0,114470.0,0.47298347]
[1757610530984,1.01682347,114480.0,114470.0,0.47298347]
[1757610531187,0.84359,114480.0,114470.0,0.47298347]
[1757610531383,1.01682347,114480.0,114470.0,0.47298347]
[1757610531790,1.01882347,114480.0,114470.0,0.47298347]
[1757610531987,1.01882347,114480.0,114470.0,0.45057347]
[1757610532187,1.44205694,114480.0,114470.0,0.2642]
[1757610533594,1.44205694,114480.0,114470.0,0.27811]
[1757610535495,1.44205694,114480.0,114470.0,0.30129]
[1757610536293,1.44205694,114480.0,114470.0,0.31002]
[1757610536491,1.44205694,114480.0,114470.0,0.28684]
[1757610537394,1.44205694,114480.0,114470.0,0.27293]
[1757610538796,1.09559,114480.0,114470.0,0.27293]
[1757610539095,1.44205694,114480.0,114470.0,0.27293]
[1757610541690,1.44205694,114480.0,114470.0,0.28684]
[1757610541989,1.44205694,114480.0,114470.0,0.27293]
[1757610542190,1.20949701,114480.0,114470.0,0.27293]
[1757610542390,0.98669701,114480.0,114470.0,0.27293]
[1757610542590,1.79229701,114480.0,114470.0,0.27293]
[1757610543396,0.98669701,114480.0,114470.0,0.27293]
[1757610543599,1.79233701,114480.0,114470.0,0.27293]
[1757610544399,0.98669701,114480.0,114470.0,0.27293]
[1757610544590,1.79217701,114480.0,114470.0,0.27293]
[1757610547900,1.44563007,114480.0,114470.0,0.27293]
[1757610548087,1.44563007,114480.0,114470.0,0.00873]
[1757610548088,1.79209701,114480.0,114470.0,0.00873]
[1757610548588,0.39023007,114480.0,114470.0,0.21905347]
[1757610548895,1.36894354,114480.0,114470.0,0.21905347]
[1757610549099,0.39023007,114480.0,114470.0,0.21905347]
[1757610549399,1.19571007,114480.0,114470.0,0.21905347]
[1757610549602,0.39023007,114480.0,114470.0,0.64228694]
[1757610550095,1.18672007,114480.0,114470.0,0.7205861]
[1757610550802,1.19571007,114480.0,114470.0,0.7205861]
[1757610551507,0.38124007,114480.0,114470.0,0.8079253]
[1757610551802,1.18660007,114480.0,114470.0,0.8079253]
[1757610552213,1.18660007,114480.0,114470.0,0.83962154]
[1757610553298,1.18660007,114480.0,114470.0,0.9181165]
[1757610553503,1.18660007,114480.0,114470.0,0.8081211]
[1757610554105,1.18660007,114480.0,114470.0,1.0723211]
[1757610554303,1.18660007,114480.0,114470.0,0.9849819]
[1757610554503,0.82580007,114480.0,114470.0,1.4331211]
[1757610555606,0.82580007,114480.0,114470.0,1.0723211]
[1757610558908,0.82580007,114480.0,114470.0,1.12382614]
[1757610562311,0.82580007,114480.0,114470.0,1.00809648]
[1757610562610,0.82580007,114480.0,114470.0,0.87809648]
[1757610563705,0.82420007,114480.0,114470.0,0.87809648]
[1757610563904,0.02044007,114480.0,114470.0,1.34889188]
[1757610564100,0.82404007,114480.0,114470.0,1.34889188]
[1757610564309,0.82404007,114480.0,114470.0,1.46889188]
[1757610564811,0.82404007,114480.0,114470.0,1.47889188]
[1757610565008,0.82404007,114480.0,114470.0,1.34889188]
[1757610565205,0.82404007,114480.0,114470.0,1.38155268]
[1757610565610,0.82404007,114480.0,114470.0,1.46889188]
[1757610567106,0.82396007,114480.0,114470.0,1.46889188]
[1757610568713,0.82396007,114480.0,114470.0,1.91259188]
[1757610570817,0.82396007,114480.0,114470.0,1.79259188]
[1757610571018,0.82396007,114480.0,114470.0,1.90259188]
[1757610571818,0.82396007,114480.0,114470.0,1.70525268]
[1757610572010,0.82396007,114480.0,114470.0,1.79259188]
[1757610574419,0.02044007,114480.0,114470.0,1.79259188]
[1757610574618,0.82340007,114480.0,114470.0,1.93259188]
[1757610575615,0.02044007,114480.0,114470.0,1.93259188]
[1757610575821,0.82332007,114480.0,114470.0,1.93259188]
[1757610578119,0.82332007,114480.0,114470.0,1.91259188]
[1757610578313,0.82332007,114480.0,114470.0,1.68259648]
[1757610578514,0.82332007,114480.0,114470.0,1.82259648]
[1757610579322,0.82332007,114480.0,114470.0,1.57259648]
[1757610580123,0.80912287,114480.0,114470.0,1.54259648]
[1757610580823,0.80912287,114480.0,114470.0,1.43259648]
[1757610582721,0.80912287,114480.0,114470.0,1.56259648]
[1757610582919,0.80824287,114480.0,114470.0,1.71935625]
[1757610583523,0.80824287,114480.0,114470.0,1.58935625]
[1757610583729,0.80824287,114480.0,114470.0,1.70935625]
[1757610583926,0.80824287,114480.0,114470.0,1.58935625]
[1757610584122,0.80824287,114480.0,114470.0,1.71935625]
[1757610584422,0.80824287,114480.0,114470.0,1.58935625]
[1757610584724,0.80824287,114480.0,114470.0,1.54259648]
[1757610585224,0.00624287,114480.0,114470.0,1.54259648]
[1757610585417,0.00624287,114480.0,114470.0,1.69935625]
[1757610586717,0.3608,114510.0,114490.0,0.03501]
[1757610587028,0.36979,114510.0,114500.0,0.26574728]
[1757610587230,1.17123,114510.0,114500.0,0.37559429]
[1757610587827,1.17123,114510.0,114500.0,0.38432429]
[1757610588424,1.17423,114510.0,114500.0,0.38432429]
[1757610589619,1.24454685,114510.0,114500.0,0.38432429]
[1757610589815,1.24354685,114510.0,114500.0,0.39306869]
[1757610590219,1.24354685,114510.0,114500.0,0.38432429]
[1757610591730,1.24354685,114510.0,114500.0,0.39305644]
[1757610592623,1.24354685,114510.0,114500.0,0.65725644]
[1757610594431,1.24354685,114510.0,114500.0,0.54740943]
[1757610597134,1.24310685,114510.0,114500.0,0.54740943]
[1757610597334,1.24310685,114510.0,114500.0,0.65725644]
[1757610600236,1.24310685,114510.0,114500.0,0.42651916]
[1757610600735,1.24310685,114510.0,114500.0,0.65725644]
[1757610602033,0.88178685,114510.0,114500.0,0.65725644]
[1757610602336,0.87271685,114510.0,114500.0,0.54740943]
[1757610602528,0.07231685,114510.0,114500.0,0.54740943]
[1757610602727,0.002,114510.0,114500.0,0.84574118]
[1757610602927,0.80232,114510.0,114500.0,0.84574118]
[1757610603423,0.80232,114510.0,114500.0,1.09669417]
[1757610603827,0.80232,114510.0,114500.0,1.20654118]
[1757610607934,0.80232,114510.0,114500.0,1.09669417]
[1757610609437,0.80232,114510.0,114500.0,1.20654118]
[1757610611542,0.002,114510.0,114500.0,1.20654118]
[1757610611928,0.002,114510.0,114500.0,1.45654118]
[1757610612132,0.87000976,114520.0,114510.0,0.03649]
[1757610612336,0.87000976,114520.0,114510.0,0.34554647]
[1757610613241,0.87000976,114520.0,114510.0,0.26722728]
[1757610613437,0.87000976,114520.0,114510.0,0.37707429]
[1757610613638,0.87000976,114520.0,114510.0,0.38580429]
[1757610614140,0.87100976,114520.0,114510.0,0.38580429]
[1757610614341,0.87999976,114520.0,114510.0,0.38580429]
[1757610614940,0.87100976,114520.0,114510.0,0.38580429]
[1757610615441,0.7994,114520.0,114510.0,0.72406558]
[1757610615641,0.7994,114520.0,114510.0,0.84406558]
[1757610615844,0.79944,114530.0,114520.0,0.03649]
[1757610616039,0.79944,114530.0,114520.0,1.11723464]
[1757610616244,0.79944,114530.0,114520.0,1.001866]
[1757610616943,0.79944,114530.0,114520.0,1.11723464]
[1757610617145,0.79944,114530.0,114520.0,1.001866]
[1757610618841,0.43117524,114540.0,114520.0,1.001866]
[1757610619048,0.44016524,114540.0,114530.0,0.23013173]
[1757610619341,1.23944524,114540.0,114530.0,0.60970037]
[1757610620642,1.23944524,114540.0,114530.0,0.51444192]
[1757610621840,1.23944524,114540.0,114530.0,0.62981056]
[1757610622447,1.23944524,114540.0,114530.0,0.39907328]
[1757610622739,1.23944524,114540.0,114530.0,0.74485436]
[1757610624836,0.00899,114540.0,114530.0,0.48065436]
[1757610625149,2.13091,114560.0,114550.0,0.0351]
[1757610625448,2.93011,114560.0,114550.0,0.38088108]
[1757610626742,3.00075918,114560.0,114550.0,0.38088108]
[1757610627047,3.00075918,114560.0,114550.0,0.0351]
[1757610627241,3.00075918,114560.0,114550.0,0.20799054]
[1757610628639,3.00075918,114560.0,114550.0,0.0351]
[1757610628840,3.00075918,114560.0,114550.0,0.20799054]
[1757610629446,3.00075918,114560.0,114550.0,0.0351]
[1757610629748,3.00075918,114560.0,114550.0,0.20799054]
[1757610630848,3.00075918,114560.0,114550.0,0.0351]
[1757610631146,3.00075918,114560.0,114550.0,0.20799054]
[1757610631553,3.00075918,114560.0,114550.0,0.21671054]
[1757610633540,3.17364972,114560.0,114550.0,0.04382]
[1757610633947,3.17364972,114560.0,114550.0,0.38960108]
[1757610633948,3.00063918,114560.0,114550.0,0.38960108]
[1757610634655,2.93023,114560.0,114550.0,0.38960108]
[1757610635546,2.13091,114560.0,114550.0,0.63960108]
[1757610635856,0.24278161,114570.0,114560.0,0.0351]
[1757610636054,1.04222161,114570.0,114560.0,0.38088108]
[1757610636553,1.04222161,114570.0,114560.0,0.0351]
[1757610636753,1.04222161,114570.0,114560.0,0.38088108]
[1757610637254,0.80831,114570.0,114560.0,0.38088108]
[1757610639248,0.80831,114570.0,114560.0,0.38971387]
[1757610639854,0.00899,114570.0,114560.0,0.38971387]
[1757610640045,0.80815,114570.0,114560.0,0.38971387]
[1757610642461,0.00899,114570.0,114560.0,0.38971387]
[1757610642756,0.80799,114570.0,114560.0,0.38971387]
[1757610645559,1.16879,114570.0,114560.0,0.38088108]
[1757610645859,1.16879,114570.0,114560.0,0.64508108]
[1757610647762,0.80795,114570.0,114560.0,0.64508108]
[1757610648060,0.80795,114570.0,114560.0,0.65384192]
[1757610648762,0.80795,114570.0,114560.0,0.64508108]
[1757610649864,0.80795,114570.0,114560.0,0.65380108]
[1757610650664,0.00899,114570.0,114560.0,0.65380108]
[1757610651064,0.80791,114570.0,114560.0,0.65380108]
[1757610651367,0.00899,114570.0,114560.0,0.65380108]
[1757610651560,0.80791,114570.0,114560.0,0.65380108]
[1757610651758,0.80791,114570.0,114560.0,0.38960108]
[1757610652165,0.00899,114570.0,114560.0,0.38960108]
[1757610652366,0.44942079,114580.0,114560.0,0.56249162]
[1757610652668,0.02672267,114580.0,114570.0,0.38112108]
[1757610652857,0.82564267,114580.0,114570.0,0.38112108]
[1757610653462,0.02672267,114580.0,114570.0,0.38112108]
[1757610653673,0.80791,114580.0,114570.0,0.38112108]
[1757610653862,0.80791,114580.0,114570.0,0.45933452]
[1757610656761,0.00899,114580.0,114570.0,0.45933452]
[1757610656959,0.80787,114580.0,114570.0,0.45933452]
[1757610657669,0.80787,114580.0,114570.0,0.72353452]
[1757610658471,0.80787,114580.0,114570.0,0.45933452]
[1757610663070,0.80779,114580.0,114570.0,0.45933452]
[1757610663676,0.80779,114580.0,114570.0,0.72353452]
[1757610664275,0.00899,114580.0,114570.0,0.72353452]
[1757610664478,0.80779,114580.0,114570.0,0.72353452]
[1757610665171,0.4493245,114590.0,114570.0,0.72353452]
[1757610665172,0.3608,114590.0,114570.0,0.45933452]
[1757610665376,0.70091,114600.0,114590.0,0.03534]
[1757610665577,1.06171,114600.0,114590.0,0.38112108]
[1757610665977,0.70091,114600.0,114590.0,0.38112108]
[1757610666279,1.06171,114600.0,114590.0,0.38112108]
[1757610666975,1.06171,114600.0,114590.0,0.38984108]
[1757610668584,0.70091,114600.0,114590.0,0.38984108]
[1757610670171,0.70091,114600.0,114590.0,0.04406]
[1757610670372,0.70091,114600.0,114590.0,0.38984108]
[1757610671570,1.06171,114600.0,114590.0,0.04406]
[1757610671973,1.06171,114600.0,114590.0,0.38984108]
[1757610672581,0.36979,114600.0,114590.0,0.65993978]
[1757610672879,0.80767,114600.0,114590.0,0.73815322]
[1757610673077,0.00899,114600.0,114590.0,0.73815322]
[1757610673283,0.80767,114600.0,114590.0,0.73815322]
[1757610674380,0.00899,114600.0,114590.0,0.73815322]
[1757610674576,0.36979,114610.0,114600.0,0.01368]
[1757610674879,1.16847,114610.0,114600.0,0.38112108]
[1757610675882,0.80767,114610.0,114600.0,0.38112108]
[1757610676379,1.16847,114610.0,114600.0,0.38112108]
[1757610677080,0.80767,114610.0,114600.0,0.38112108]
[1757610677875,1.16847,114610.0,114600.0,0.38112108]
[1757610678279,1.16847,114610.0,114600.0,0.45933452]
[1757610680681,1.16847,114610.0,114600.0,0.38112108]
[1757610682682,1.16847,114610.0,114600.0,0.45933452]
[1757610684279,1.16847,114610.0,114600.0,0.22868287]
[1757610684484,0.36979,114610.0,114600.0,0.3438123]
[1757610684979,1.16835,114610.0,114600.0,0.3525323]
[1757610685177,1.16835,114610.0,114600.0,0.12227344]
[1757610685377,1.16835,114610.0,114600.0,0.3525323]
[1757610687285,1.16835,114610.0,114600.0,0.27431886]
[1757610687983,1.16835,114610.0,114600.0,0.3525323]
[1757610688482,1.16835,114610.0,114600.0,0.23740287]
[1757610688883,1.16835,114610.0,114600.0,0.12227344]
[1757610689082,1.16835,114610.0,114600.0,0.23740287]
[1757610689780,1.53347943,114610.0,114600.0,0.10061344]
[1757610689978,1.53347943,114610.0,114600.0,0.08693344]
[1757610690179,1.53347943,114610.0,114600.0,0.00872]
[1757610690484,1.41835,114610.0,114600.0,0.08693344]
[1757610690986,1.41835,114610.0,114600.0,0.03055]
[1757610691286,1.41835,114610.0,114600.0,0.15829943]
[1757610691485,1.41831,114610.0,114600.0,0.15829943]
[1757610691877,1.41831,114610.0,114600.0,0.23651287]
[1757610692077,1.41831,114610.0,114600.0,0.3516423]
[1757610692282,1.41831,114610.0,114600.0,0.27342886]
[1757610692682,1.16831,114610.0,114600.0,0.27342886]
[1757610693087,1.16831,114610.0,114600.0,0.3516423]
[1757610693287,1.16831,114610.0,114600.0,0.27342886]
[1757610693479,0.80751,114610.0,114600.0,0.27342886]
[1757610693687,1.16831,114610.0,114600.0,0.27342886]
[1757610694684,1.16831,114610.0,114600.0,0.35166939]
[1757610696580,1.16831,114610.0,114600.0,0.12141053]
[1757610696781,1.16831,114610.0,114600.0,0.35166939]
[1757610697085,1.16831,114610.0,114600.0,0.27342886]
[1757610697390,1.53343943,114610.0,114600.0,0.00872]
[1757610697579,1.41827,114610.0,114600.0,0.15829943]
[1757610697782,1.41827,114610.0,114600.0,0.00872]
[1757610698080,1.41827,114610.0,114600.0,0.12384943]
[1757610698388,1.41827,114610.0,114600.0,0.14567943]
[1757610698591,1.41827,114610.0,114600.0,0.00872]
[1757610699387,1.28339943,114610.0,114600.0,0.00872]
[1757610699886,1.28339943,114610.0,114600.0,0.12384943]
[1757610700187,1.28339943,114610.0,114600.0,0.00872]
[1757610700689,1.28339943,114610.0,114600.0,0.04317]
[1757610701188,1.28339943,114610.0,114600.0,0.00872]
[1757610701381,1.53339943,114610.0,114600.0,0.00872]
[1757610701579,1.64852886,114610.0,114600.0,0.00872]
[1757610702086,0.11512943,114590.0,114580.0,0.07824053]
[1757610702289,1.63520943,114590.0,114580.0,0.07824053]
[1757610702488,1.63520943,114590.0,114570.0,0.11375053]
[1757610702685,0.3608,114580.0,114570.0,0.22887996]
[1757610703388,0.3608,114580.0,114570.0,0.15063943]
[1757610704286,0.4935689,114580.0,114570.0,0.07830407]
[1757610704478,0.60869833,114580.0,114570.0,0.07830407]
[1757610704890,1.2923689,114580.0,114570.0,0.07830407]
[1757610705392,1.40749833,114580.0,114570.0,0.07830407]
[1757610705592,1.2923689,114580.0,114560.0,0.03445]
[1757610705788,0.47592943,114570.0,114560.0,0.07830407]
[1757610705993,0.3608,114570.0,114560.0,0.07830407]
[1757610706191,1.16036,114570.0,114550.0,0.2281835]
[1757610706493,0.54653056,114570.0,114560.0,0.03445]
[1757610706684,1.70709056,114570.0,114560.0,0.14957943]
[1757610706993,1.59196113,114570.0,114560.0,0.14957943]
[1757610707293,1.59196113,114570.0,114560.0,0.03445]
[1757610707488,1.59196113,114570.0,114560.0,0.01262]
[1757610707489,0.90733056,114570.0,114560.0,0.01262]
[1757610707688,0.90733056,114570.0,114560.0,0.11612943]
[1757610707888,1.59276113,114570.0,114560.0,0.12874943]
[1757610708088,1.70789056,114570.0,114560.0,0.01362]
[1757610709285,1.70789056,114570.0,114560.0,0.001]
[1757610710195,1.70789056,114570.0,114560.0,0.002]
[1757610714697,2.07301999,114570.0,114560.0,0.002]
[1757610714903,2.07301999,114570.0,114550.0,0.0003]
[1757610715200,0.59105886,114560.0,114550.0,0.0003]
[1757610715395,0.60854846,114560.0,114550.0,0.0003]
[1757610715598,0.85854846,114560.0,114550.0,0.0003]
[1757610715804,1.65990846,114560.0,114520.0,0.14979943]
[1757610716001,0.3608,114530.0,114520.0,0.14979943]
[1757610716195,1.16216,114530.0,114520.0,0.14979943]
[1757610717101,1.16216,114530.0,114520.0,0.39979943]
[1757610717696,1.27728943,114530.0,114520.0,0.01262]
[1757610718005,1.29470527,114530.0,114510.0,0.15105943]
[1757610718706,0.3608,114520.0,114510.0,0.15105943]
[1757610718901,1.16184,114520.0,114510.0,0.15105943]
[1757610719408,0.3608,114520.0,114510.0,0.15105943]
[1757610719604,1.1618,114520.0,114510.0,0.15105943]
[1757610719906,0.3608,114520.0,114510.0,0.15105943]
[1757610720100,1.1618,114520.0,114510.0,0.15105943]
[1757610720707,0.3608,114520.0,114510.0,0.03593]
[1757610720907,1.16168,114520.0,114510.0,0.15105943]
[1757610721110,1.16168,114520.0,114510.0,0.03693]
[1757610721406,1.16168,114520.0,114510.0,0.15305943]
[1757610721607,0.56298645,114530.0,114510.0,0.03793]
[1757610721905,0.56298645,114530.0,114520.0,0.01388]
[1757610722106,1.36438645,114530.0,114520.0,0.12900943]
[1757610722699,1.24925702,114530.0,114520.0,0.12900943]
[1757610723007,0.44785702,114530.0,114520.0,0.41525943]
[1757610723206,1.36434645,114530.0,114520.0,0.41525943]
[1757610723507,1.24921702,114530.0,114520.0,0.41525943]
[1757610724211,1.24921702,114530.0,114520.0,0.41625943]
[1757610724405,1.24913702,114530.0,114520.0,0.41625943]
[1757610724606,1.24913702,114530.0,114520.0,0.53138886]
[1757610726111,1.24905702,114530.0,114520.0,0.53138886]
[1757610726511,1.24909702,114530.0,114520.0,0.53138886]
[1757610727409,1.24909702,114530.0,114520.0,0.39420943]
[1757610727810,1.24909702,114530.0,114520.0,0.41625943]
[1757610728011,1.24909702,114530.0,114520.0,0.27908]
[1757610728012,1.36422645,114530.0,114520.0,0.27908]
[1757610730415,1.37310825,114530.0,114520.0,0.27908]
[1757610730810,0.56298645,114530.0,114520.0,0.27908]
[1757610731015,1.24881702,114530.0,114520.0,0.41625943]
[1757610732009,1.24881702,114530.0,114520.0,0.27908]
[1757610732210,1.24881702,114530.0,114520.0,0.39420943]
[1757610732417,1.36394645,114530.0,114520.0,0.27908]
[1757610732817,1.3725613,114530.0,114520.0,0.27908]
[1757610733218,1.3725613,114530.0,114520.0,0.2652]
[1757610733922,1.36394645,114530.0,114520.0,0.2652]
[1757610734720,0.56298645,114530.0,114520.0,0.28725]
[1757610735020,1.24869702,114530.0,114520.0,0.40237943]
[1757610737115,1.25746679,114530.0,114520.0,0.40237943]
[1757610737724,1.25746679,114530.0,114520.0,0.41625943]
[1757610737924,0.44785702,114530.0,114520.0,0.41625943]
[1757610738121,1.24845702,114530.0,114520.0,0.41625943]
[1757610739316,1.25728105,114530.0,114520.0,0.41625943]
[1757610740121,1.24817702,114530.0,114520.0,0.41625943]
[1757610740611,1.2570947,114530.0,114520.0,0.41625943]
[1757610741226,1.24817702,114530.0,114520.0,0.41625943]
[1757610742816,1.25707195,114530.0,114520.0,0.41625943]
[1757610743016,1.24805702,114530.0,114520.0,0.53138886]
[1757610743517,0.44785702,114530.0,114520.0,0.53138886]
[1757610743721,1.24793702,114530.0,114520.0,0.53138886]
[1757610745028,1.24797702,114530.0,114520.0,0.78138886]
[1757610745925,1.24809702,114530.0,114520.0,0.78138886]
[1757610746315,1.24809702,114530.0,114520.0,0.89695434]
[1757610746719,0.01741584,114530.0,114520.0,1.37376641]
[1757610747026,0.01741584,114530.0,114520.0,1.68160723]
[1757610747027,0.81781584,114530.0,114520.0,1.68160723]
[1757610747220,0.81781584,114530.0,114520.0,1.60330316]
[1757610747925,0.8004,114530.0,114520.0,1.57219486]
[1757610748824,0.8004,114530.0,114520.0,0.99489496]